[Event "Live Chess"]
[Site "Chess.com"]
[Date "2011.01.18"]
[Round "-"]
[White "Croom"]
[Black "hipposcottimus"]
[Result "0-1"]
[CurrentPosition "rn3rk1/ppN4p/2b2p2/2b3pK/8/7q/PPP4P/R1BQR3 w - -"]
[Timezone "UTC"]
[ECO "C31"]
[ECOUrl "https://www.chess.com/openings/Kings-Gambit-Declined-Falkbeer-Accepted-Staunton-Line-4.Nc3-Nf6"]
[UTCDate "2011.01.18"]
[UTCTime "03:43:05"]
[WhiteElo "1853"]
[BlackElo "1656"]
[TimeControl "60"]
[Termination "hipposcottimus won by checkmate"]
[StartTime "03:43:05"]
[EndDate "2011.01.18"]
[EndTime "03:44:44"]
[Link "https://www.chess.com/game/live/88710173"]

1. e4 {[%clk 0:01:00]} 1... e5 {[%clk 0:01:00]} 2. f4 {[%clk 0:00:59.5]} 2... d5 {[%clk 0:00:59]} 3. exd5 {[%clk 0:00:58.1]} 3... e4 {[%clk 0:00:58.1]} 4. Nc3 {[%clk 0:00:56]} 4... Nf6 {[%clk 0:00:56.4]} 5. Bc4 {[%clk 0:00:51.3]} 5... c6 {[%clk 0:00:48.6]} 6. d3 {[%clk 0:00:50.5]} 6... cxd5 {[%clk 0:00:47.3]} 7. Nxd5 {[%clk 0:00:49.6]} 7... Nxd5 {[%clk 0:00:46.5]} 8. Bxd5 {[%clk 0:00:48.9]} 8... Qxd5 {[%clk 0:00:46.3]} 9. dxe4 {[%clk 0:00:48.2]} 9... Qxe4+ {[%clk 0:00:46]} 10. Kf1 {[%clk 0:00:46.3]} 10... Bd7 {[%clk 0:00:42.5]} 11. Nf3 {[%clk 0:00:45.6]} 11... Bb5+ {[%clk 0:00:41.4]} 12. Kf2 {[%clk 0:00:44.8]} 12... Bc5+ {[%clk 0:00:38.7]} 13. Kg3 {[%clk 0:00:41.3]} 13... O-O {[%clk 0:00:31.4]} 14. Re1 {[%clk 0:00:40.6]} 14... Qg6+ {[%clk 0:00:30]} 15. Ng5 {[%clk 0:00:38.1]} 15... f6 {[%clk 0:00:29]} 16. f5 {[%clk 0:00:36.8]} 16... Qxf5 {[%clk 0:00:26.2]} 17. Ne6 {[%clk 0:00:31.7]} 17... Qg6+ {[%clk 0:00:19]} 18. Kh3 {[%clk 0:00:28]} 18... Bc6 {[%clk 0:00:14.2]} 19. Nc7 {[%clk 0:00:25.3]} 19... Qxg2+ {[%clk 0:00:12.6]} 20. Kh4 {[%clk 0:00:23.2]} 20... g5+ {[%clk 0:00:10.9]} 21. Kh5 {[%clk 0:00:22.2]} 21... Qh3# {[%clk 0:00:10.1]} 0-1

[Event "Live Chess"]
[Site "Chess.com"]
[Date "2011.01.18"]
[Round "-"]
[White "hipposcottimus"]
[Black "Croom"]
[Result "1-0"]
[CurrentPosition "3rr3/p1p3pp/3b1p1k/3Q3P/5P2/8/2q3P1/1R2R2K b - -"]
[Timezone "UTC"]
[ECO "B01"]
[ECOUrl "https://www.chess.com/openings/Scandinavian-Defense-Mieses-Kotrc-Main-Line-4.d4-Nf6-5.Bd2-Bg4"]
[UTCDate "2011.01.18"]
[UTCTime "03:40:41"]
[WhiteElo "1643"]
[BlackElo "1864"]
[TimeControl "60"]
[Termination "hipposcottimus won on time"]
[StartTime "03:40:41"]
[EndDate "2011.01.18"]
[EndTime "03:42:56"]
[Link "https://www.chess.com/game/live/88709667"]

1. e4 {[%clk 0:01:00]} 1... d5 {[%clk 0:01:00]} 2. exd5 {[%clk 0:00:58.5]} 2... Qxd5 {[%clk 0:00:59.9]} 3. Nc3 {[%clk 0:00:58.3]} 3... Qa5 {[%clk 0:00:59.8]} 4. d4 {[%clk 0:00:57.7]} 4... Nf6 {[%clk 0:00:59.7]} 5. Bd2 {[%clk 0:00:57.4]} 5... Bg4 {[%clk 0:00:58.9]} 6. Nce2 {[%clk 0:00:56]} 6... Qh5 {[%clk 0:00:55.1]} 7. f3 {[%clk 0:00:54.7]} 7... Bf5 {[%clk 0:00:53.5]} 8. Ng3 {[%clk 0:00:53.9]} 8... Qg6 {[%clk 0:00:51.5]} 9. Nxf5 {[%clk 0:00:53.5]} 9... Qxf5 {[%clk 0:00:51]} 10. Ne2 {[%clk 0:00:53.2]} 10... Nc6 {[%clk 0:00:49.9]} 11. Ng3 {[%clk 0:00:52.4]} 11... Qg6 {[%clk 0:00:48.4]} 12. Be2 {[%clk 0:00:51.9]} 12... Nxd4 {[%clk 0:00:47.5]} 13. Bd3 {[%clk 0:00:50.9]} 13... Ne4 {[%clk 0:00:41.2]} 14. Bxe4 {[%clk 0:00:48.1]} 14... Qe6 {[%clk 0:00:40.1]} 15. O-O {[%clk 0:00:46.8]} 15... O-O-O {[%clk 0:00:37.8]} 16. Bc3 {[%clk 0:00:42.3]} 16... Qb6 {[%clk 0:00:35.6]} 17. b3 {[%clk 0:00:36.9]} 17... Nxb3+ {[%clk 0:00:30.9]} 18. Bd4 {[%clk 0:00:32]} 18... Nxd4 {[%clk 0:00:29.5]} 19. Kh1 {[%clk 0:00:31.3]} 19... Nf5 {[%clk 0:00:23.4]} 20. Qe1 {[%clk 0:00:25.2]} 20... Nxg3+ {[%clk 0:00:22.2]} 21. Qxg3 {[%clk 0:00:24.9]} 21... e6 {[%clk 0:00:20.4]} 22. Rab1 {[%clk 0:00:24.4]} 22... Qa5 {[%clk 0:00:16.6]} 23. Bxb7+ {[%clk 0:00:24.1]} 23... Kd7 {[%clk 0:00:14.8]} 24. Rfd1+ {[%clk 0:00:21.2]} 24... Bd6 {[%clk 0:00:14.2]} 25. Qf2 {[%clk 0:00:16.1]} 25... Ke7 {[%clk 0:00:12.7]} 26. Qh4+ {[%clk 0:00:14.9]} 26... f6 {[%clk 0:00:11.2]} 27. Qd4 {[%clk 0:00:12.8]} 27... Qxa2 {[%clk 0:00:09.6]} 28. Bc6 {[%clk 0:00:08.2]} 28... Qxc2 {[%clk 0:00:08.3]} 29. Bd5 {[%clk 0:00:07.5]} 29... exd5 {[%clk 0:00:06.9]} 30. Re1+ {[%clk 0:00:06.9]} 30... Kf7 {[%clk 0:00:05.1]} 31. Qxd5+ {[%clk 0:00:06.6]} 31... Kg6 {[%clk 0:00:03.6]} 32. h4 {[%clk 0:00:04.3]} 32... Rhe8 {[%clk 0:00:01.9]} 33. h5+ {[%clk 0:00:03.7]} 33... Kh6 {[%clk 0:00:00.2]} 34. f4 {[%clk 0:00:02.4]} 1-0

[Event "Live Chess"]
[Site "Chess.com"]
[Date "2011.01.18"]
[Round "-"]
[White "Croom"]
[Black "hipposcottimus"]
[Result "1-0"]
[CurrentPosition "r1b2rk1/ppp2ppp/6n1/2b3NQ/8/8/PPPP2PP/R1B2B1K b - -"]
[Timezone "UTC"]
[ECO "C31"]
[ECOUrl "https://www.chess.com/openings/Kings-Gambit-Declined-Falkbeer-Countergambit"]
[UTCDate "2011.01.18"]
[UTCTime "03:39:35"]
[WhiteElo "1876"]
[BlackElo "1629"]
[TimeControl "60"]
[Termination "Croom won by resignation"]
[StartTime "03:39:35"]
[EndDate "2011.01.18"]
[EndTime "03:40:33"]
[Link "https://www.chess.com/game/live/88709438"]

1. e4 {[%clk 0:01:00]} 1... e5 {[%clk 0:01:00]} 2. f4 {[%clk 0:00:58.2]} 2... d5 {[%clk 0:00:58.3]} 3. fxe5 {[%clk 0:00:54.8]} 3... dxe4 {[%clk 0:00:56.9]} 4. Nc3 {[%clk 0:00:53.5]} 4... Nc6 {[%clk 0:00:55.6]} 5. Nxe4 {[%clk 0:00:51.3]} 5... Nxe5 {[%clk 0:00:54.7]} 6. Qh5 {[%clk 0:00:49.1]} 6... Ng6 {[%clk 0:00:46.6]} 7. Bd3 {[%clk 0:00:46.6]} 7... Nf6 {[%clk 0:00:43.1]} 8. Nxf6+ {[%clk 0:00:44.3]} 8... Qxf6 {[%clk 0:00:42.8]} 9. Nf3 {[%clk 0:00:43.6]} 9... Be7 {[%clk 0:00:39.8]} 10. O-O {[%clk 0:00:42.5]} 10... O-O {[%clk 0:00:38.9]} 11. Ng5 {[%clk 0:00:40.7]} 11... Bc5+ {[%clk 0:00:34.9]} 12. Kh1 {[%clk 0:00:36.8]} 12... Qxf1+ {[%clk 0:00:34]} 13. Bxf1 {[%clk 0:00:34.6]} 1-0

[Event "Live Chess"]
[Site "Chess.com"]
[Date "2011.01.18"]
[Round "-"]
[White "hipposcottimus"]
[Black "Croom"]
[Result "0-1"]
[CurrentPosition "2k2rr1/1pp5/pbb1RB2/3p3N/3P4/2P5/PP1N1PqP/R2Q2K1 w - -"]
[Timezone "UTC"]
[ECO "B01"]
[ECOUrl "https://www.chess.com/openings/Scandinavian-Defense-2.e5"]
[UTCDate "2011.01.18"]
[UTCTime "03:38:03"]
[WhiteElo "1632"]
[BlackElo "1873"]
[TimeControl "60"]
[Termination "Croom won by checkmate"]
[StartTime "03:38:03"]
[EndDate "2011.01.18"]
[EndTime "03:39:27"]
[Link "https://www.chess.com/game/live/88709084"]

1. e4 {[%clk 0:01:00]} 1... d5 {[%clk 0:01:00]} 2. e5 {[%clk 0:00:58.6]} 2... e6 {[%clk 0:00:58.8]} 3. d4 {[%clk 0:00:58.2]} 3... Nc6 {[%clk 0:00:58.4]} 4. Nf3 {[%clk 0:00:57.9]} 4... Bb4+ {[%clk 0:00:57.6]} 5. c3 {[%clk 0:00:57]} 5... Ba5 {[%clk 0:00:57.2]} 6. Nbd2 {[%clk 0:00:56.7]} 6... f6 {[%clk 0:00:54.7]} 7. Nb3 {[%clk 0:00:56.4]} 7... Bb6 {[%clk 0:00:53.1]} 8. Bf4 {[%clk 0:00:54.4]} 8... Bd7 {[%clk 0:00:52.1]} 9. Bb5 {[%clk 0:00:51.8]} 9... a6 {[%clk 0:00:50.5]} 10. Bxc6 {[%clk 0:00:50.7]} 10... Bxc6 {[%clk 0:00:50]} 11. O-O {[%clk 0:00:50.2]} 11... Qe7 {[%clk 0:00:49.2]} 12. Re1 {[%clk 0:00:49.7]} 12... O-O-O {[%clk 0:00:48.3]} 13. Nbd2 {[%clk 0:00:48.4]} 13... g5 {[%clk 0:00:47.8]} 14. exf6 {[%clk 0:00:43.4]} 14... Nxf6 {[%clk 0:00:46]} 15. Be5 {[%clk 0:00:42.8]} 15... h5 {[%clk 0:00:44.1]} 16. Nxg5 {[%clk 0:00:41.7]} 16... Rhg8 {[%clk 0:00:42.4]} 17. Nh3 {[%clk 0:00:37.9]} 17... Qg7 {[%clk 0:00:41.1]} 18. Nf4 {[%clk 0:00:31.6]} 18... Qh7 {[%clk 0:00:36.1]} 19. Bxf6 {[%clk 0:00:25.7]} 19... Rdf8 {[%clk 0:00:32.9]} 20. Nxh5 {[%clk 0:00:21]} 20... Qg6 {[%clk 0:00:28.5]} 21. Rxe6 {[%clk 0:00:19.4]} 21... Qxg2# {[%clk 0:00:27.1]} 0-1

[Event "Live Chess"]
[Site "Chess.com"]
[Date "2011.01.18"]
[Round "-"]
[White "Croom"]
[Black "hipposcottimus"]
[Result "0-1"]
[CurrentPosition "5R2/6pp/2QK1rk1/5p2/8/7P/8/8 w - -"]
[Timezone "UTC"]
[ECO "C47"]
[ECOUrl "https://www.chess.com/openings/Four-Knights-Game-Italian-Variation"]
[UTCDate "2011.01.18"]
[UTCTime "03:35:34"]
[WhiteElo "1870"]
[BlackElo "1635"]
[TimeControl "60"]
[Termination "hipposcottimus won on time"]
[StartTime "03:35:34"]
[EndDate "2011.01.18"]
[EndTime "03:37:45"]
[Link "https://www.chess.com/game/live/88708560"]

1. e4 {[%clk 0:01:00]} 1... e5 {[%clk 0:01:00]} 2. Nf3 {[%clk 0:00:59.3]} 2... Nc6 {[%clk 0:00:59.8]} 3. Bc4 {[%clk 0:00:58.8]} 3... Nf6 {[%clk 0:00:59.6]} 4. Nc3 {[%clk 0:00:58.3]} 4... d5 {[%clk 0:00:59.1]} 5. exd5 {[%clk 0:00:56.4]} 5... Na5 {[%clk 0:00:54.2]} 6. Bd3 {[%clk 0:00:53.7]} 6... Nxd5 {[%clk 0:00:52.7]} 7. Nxd5 {[%clk 0:00:50.3]} 7... Qxd5 {[%clk 0:00:52.4]} 8. c4 {[%clk 0:00:46.7]} 8... Nxc4 {[%clk 0:00:50.5]} 9. Bxc4 {[%clk 0:00:45.6]} 9... Qxc4 {[%clk 0:00:50.1]} 10. Nxe5 {[%clk 0:00:44.9]} 10... Qe6 {[%clk 0:00:49.4]} 11. Qe2 {[%clk 0:00:42.5]} 11... Bd6 {[%clk 0:00:48.9]} 12. d4 {[%clk 0:00:41.1]} 12... f6 {[%clk 0:00:48.4]} 13. Nf3 {[%clk 0:00:38.2]} 13... Qxe2+ {[%clk 0:00:47.9]} 14. Kxe2 {[%clk 0:00:38.1]} 14... O-O {[%clk 0:00:47.3]} 15. Re1 {[%clk 0:00:36.8]} 15... Bg4 {[%clk 0:00:43.7]} 16. h3 {[%clk 0:00:33.8]} 16... Bxf3+ {[%clk 0:00:42.8]} 17. Kxf3 {[%clk 0:00:33.7]} 17... Rfe8 {[%clk 0:00:42.1]} 18. Rxe8+ {[%clk 0:00:31.7]} 18... Rxe8 {[%clk 0:00:41.9]} 19. Be3 {[%clk 0:00:30.3]} 19... b6 {[%clk 0:00:39.7]} 20. a3 {[%clk 0:00:29.3]} 20... c5 {[%clk 0:00:39]} 21. dxc5 {[%clk 0:00:27.6]} 21... Bxc5 {[%clk 0:00:36.3]} 22. Bxc5 {[%clk 0:00:25.4]} 22... bxc5 {[%clk 0:00:36.1]} 23. Rc1 {[%clk 0:00:24.2]} 23... Rc8 {[%clk 0:00:35.2]} 24. Rc4 {[%clk 0:00:23]} 24... a5 {[%clk 0:00:31.7]} 25. Ra4 {[%clk 0:00:21.8]} 25... Ra8 {[%clk 0:00:29.9]} 26. Ke4 {[%clk 0:00:20]} 26... Ra7 {[%clk 0:00:29.3]} 27. Kd5 {[%clk 0:00:19.3]} 27... Ra6 {[%clk 0:00:28.7]} 28. Kxc5 {[%clk 0:00:18.5]} 28... Ra8 {[%clk 0:00:28.3]} 29. Kb5 {[%clk 0:00:17.8]} 29... Rb8+ {[%clk 0:00:27.7]} 30. Kxa5 {[%clk 0:00:16.9]} 30... Rxb2 {[%clk 0:00:27.4]} 31. Rb4 {[%clk 0:00:15.1]} 31... Rxf2 {[%clk 0:00:26.5]} 32. Rb8+ {[%clk 0:00:12.7]} 32... Kf7 {[%clk 0:00:26.3]} 33. Kb6 {[%clk 0:00:12]} 33... Kg6 {[%clk 0:00:26]} 34. a4 {[%clk 0:00:11.4]} 34... Rxg2 {[%clk 0:00:25.5]} 35. a5 {[%clk 0:00:11]} 35... Rb2+ {[%clk 0:00:25.2]} 36. Kc7 {[%clk 0:00:09.8]} 36... Ra2 {[%clk 0:00:21.9]} 37. Ra8 {[%clk 0:00:08.4]} 37... Ra4 {[%clk 0:00:20.3]} 38. a6 {[%clk 0:00:07.8]} 38... Rh4 {[%clk 0:00:20]} 39. a7 {[%clk 0:00:07]} 39... f5 {[%clk 0:00:18.3]} 40. Rf8 {[%clk 0:00:05.2]} 40... Rc4+ {[%clk 0:00:17.6]} 41. Kb6 {[%clk 0:00:03.8]} 41... Rb4+ {[%clk 0:00:17]} 42. Kc5 {[%clk 0:00:03.4]} 42... Rb7 {[%clk 0:00:15.8]} 43. a8=Q {[%clk 0:00:02.6]} 43... Rc7+ {[%clk 0:00:15.5]} 44. Kd6 {[%clk 0:00:01.3]} 44... Rf7 {[%clk 0:00:13.1]} 45. Qc6 {[%clk 0:00:00.1]} 45... Rf6+ {[%clk 0:00:12.2]} 0-1

[Event "Live Chess"]
[Site "Chess.com"]
[Date "2011.01.18"]
[Round "-"]
[White "hipposcottimus"]
[Black "Croom"]
[Result "0-1"]
[CurrentPosition "1kb5/p6p/8/4b3/6rK/8/P6P/8 w - -"]
[Timezone "UTC"]
[ECO "B01"]
[ECOUrl "https://www.chess.com/openings/Scandinavian-Defense-Mieses-Kotrc-Main-Line"]
[UTCDate "2011.01.18"]
[UTCTime "03:33:03"]
[WhiteElo "1621"]
[BlackElo "1882"]
[TimeControl "60"]
[Termination "Croom won on time"]
[StartTime "03:33:03"]
[EndDate "2011.01.18"]
[EndTime "03:35:14"]
[Link "https://www.chess.com/game/live/88707947"]

1. e4 {[%clk 0:01:00]} 1... d5 {[%clk 0:01:00]} 2. exd5 {[%clk 0:00:58.6]} 2... Qxd5 {[%clk 0:00:59.9]} 3. Nc3 {[%clk 0:00:58.3]} 3... Qa5 {[%clk 0:00:59.8]} 4. Be2 {[%clk 0:00:57.7]} 4... Nf6 {[%clk 0:00:59.5]} 5. d4 {[%clk 0:00:57.4]} 5... Nc6 {[%clk 0:00:59]} 6. Bd2 {[%clk 0:00:57.1]} 6... Bf5 {[%clk 0:00:58.4]} 7. Nb5 {[%clk 0:00:54.9]} 7... Qb6 {[%clk 0:00:56.5]} 8. d5 {[%clk 0:00:52.4]} 8... Nd4 {[%clk 0:00:54.1]} 9. Nxd4 {[%clk 0:00:44.1]} 9... Qxd4 {[%clk 0:00:54]} 10. Be3 {[%clk 0:00:41.7]} 10... Qxb2 {[%clk 0:00:53]} 11. Nf3 {[%clk 0:00:40.1]} 11... Ng4 {[%clk 0:00:48.8]} 12. Rb1 {[%clk 0:00:37.4]} 12... Qc3+ {[%clk 0:00:46.9]} 13. Bd2 {[%clk 0:00:35.3]} 13... Qc5 {[%clk 0:00:45.9]} 14. Bb5+ {[%clk 0:00:34.5]} 14... c6 {[%clk 0:00:44.4]} 15. Be3 {[%clk 0:00:34]} 15... Nxe3 {[%clk 0:00:41.1]} 16. fxe3 {[%clk 0:00:27.1]} 16... Qxe3+ {[%clk 0:00:40.1]} 17. Qe2 {[%clk 0:00:26]} 17... Qxe2+ {[%clk 0:00:36.2]} 18. Kxe2 {[%clk 0:00:25.8]} 18... cxb5 {[%clk 0:00:35.5]} 19. Rxb5 {[%clk 0:00:23.8]} 19... Bxc2 {[%clk 0:00:34.3]} 20. Rxb7 {[%clk 0:00:22.8]} 20... e6 {[%clk 0:00:30.7]} 21. Rc1 {[%clk 0:00:22.3]} 21... Be4 {[%clk 0:00:28]} 22. dxe6 {[%clk 0:00:19.5]} 22... fxe6 {[%clk 0:00:26.5]} 23. Ne5 {[%clk 0:00:18.5]} 23... Bxb7 {[%clk 0:00:25.5]} 24. Rc7 {[%clk 0:00:16.8]} 24... Ba6+ {[%clk 0:00:23.1]} 25. Kf2 {[%clk 0:00:15]} 25... Bd6 {[%clk 0:00:23]} 26. Rxg7 {[%clk 0:00:12.2]} 26... O-O-O {[%clk 0:00:20.6]} 27. Nf7 {[%clk 0:00:10.3]} 27... Be5 {[%clk 0:00:17.7]} 28. Nxd8 {[%clk 0:00:07.1]} 28... Bxg7 {[%clk 0:00:16.6]} 29. Nxe6 {[%clk 0:00:06.6]} 29... Be5 {[%clk 0:00:13.8]} 30. Nf4 {[%clk 0:00:06.4]} 30... Rf8 {[%clk 0:00:13]} 31. Kf3 {[%clk 0:00:05.7]} 31... Rxf4+ {[%clk 0:00:11.5]} 32. Kg3 {[%clk 0:00:04.7]} 32... Ra4+ {[%clk 0:00:09.6]} 33. Kh3 {[%clk 0:00:03.9]} 33... Bb7 {[%clk 0:00:08.5]} 34. g3 {[%clk 0:00:03.5]} 34... Kb8 {[%clk 0:00:08.1]} 35. g4 {[%clk 0:00:01.8]} 35... Bc8 {[%clk 0:00:08]} 36. Kh4 {[%clk 0:00:01.5]} 36... Rxg4+ {[%clk 0:00:05.9]} 0-1

[Event "Live Chess"]
[Site "Chess.com"]
[Date "2011.01.18"]
[Round "-"]
[White "Croom"]
[Black "hipposcottimus"]
[Result "1-0"]
[CurrentPosition "r5rk/pp3p2/2n1bN1Q/2p2P1P/3p4/3P2R1/nPP3P1/1K1R4 b - -"]
[Timezone "UTC"]
[ECO "C47"]
[ECOUrl "https://www.chess.com/openings/Four-Knights-Game-Italian-Variation"]
[UTCDate "2011.01.18"]
[UTCTime "03:30:46"]
[WhiteElo "1879"]
[BlackElo "1624"]
[TimeControl "60"]
[Termination "Croom won by checkmate"]
[StartTime "03:30:46"]
[EndDate "2011.01.18"]
[EndTime "03:32:44"]
[Link "https://www.chess.com/game/live/88707434"]

1. e4 {[%clk 0:01:00]} 1... e5 {[%clk 0:01:00]} 2. Nf3 {[%clk 0:00:59.3]} 2... Nc6 {[%clk 0:00:57.7]} 3. Bc4 {[%clk 0:00:58.8]} 3... Nf6 {[%clk 0:00:55.8]} 4. Nc3 {[%clk 0:00:58.4]} 4... Na5 {[%clk 0:00:53.7]} 5. Bd3 {[%clk 0:00:56.6]} 5... c6 {[%clk 0:00:52.4]} 6. Nxe5 {[%clk 0:00:55.6]} 6... d6 {[%clk 0:00:48.2]} 7. Nf3 {[%clk 0:00:54.6]} 7... c5 {[%clk 0:00:47.6]} 8. Nd5 {[%clk 0:00:51.7]} 8... Nc6 {[%clk 0:00:46.3]} 9. Bc4 {[%clk 0:00:50.4]} 9... Nxe4 {[%clk 0:00:43.3]} 10. d3 {[%clk 0:00:48.6]} 10... Nf6 {[%clk 0:00:42.2]} 11. Bg5 {[%clk 0:00:47.4]} 11... Be7 {[%clk 0:00:41.7]} 12. Nxe7 {[%clk 0:00:44.2]} 12... Qxe7+ {[%clk 0:00:38.9]} 13. Be3 {[%clk 0:00:42.7]} 13... O-O {[%clk 0:00:38.1]} 14. Qd2 {[%clk 0:00:41.1]} 14... d5 {[%clk 0:00:37.8]} 15. O-O-O {[%clk 0:00:40.6]} 15... d4 {[%clk 0:00:37.2]} 16. Bg5 {[%clk 0:00:39]} 16... Qd6 {[%clk 0:00:35.5]} 17. h4 {[%clk 0:00:36.8]} 17... Nd5 {[%clk 0:00:34.7]} 18. h5 {[%clk 0:00:33.7]} 18... h6 {[%clk 0:00:33.1]} 19. Bxh6 {[%clk 0:00:32.2]} 19... gxh6 {[%clk 0:00:30.5]} 20. Rh3 {[%clk 0:00:31.4]} 20... Kh7 {[%clk 0:00:29.4]} 21. Ng5+ {[%clk 0:00:26.6]} 21... Kg7 {[%clk 0:00:25.7]} 22. Ne4 {[%clk 0:00:22.2]} 22... Qe6 {[%clk 0:00:17.4]} 23. Rg3+ {[%clk 0:00:21.5]} 23... Kh7 {[%clk 0:00:16.9]} 24. f4 {[%clk 0:00:16]} 24... Ndb4 {[%clk 0:00:15.4]} 25. Bxe6 {[%clk 0:00:14.7]} 25... Nxa2+ {[%clk 0:00:13.8]} 26. Kb1 {[%clk 0:00:12.9]} 26... Bxe6 {[%clk 0:00:13.3]} 27. Nf6+ {[%clk 0:00:12]} 27... Kh8 {[%clk 0:00:09.5]} 28. f5 {[%clk 0:00:10.9]} 28... Rg8 {[%clk 0:00:06.6]} 29. Qxh6# {[%clk 0:00:10.3]} 1-0

[Event "Live Chess"]
[Site "Chess.com"]
[Date "2011.01.18"]
[Round "-"]
[White "hipposcottimus"]
[Black "Croom"]
[Result "1-0"]
[CurrentPosition "r1k5/p1Q2R2/2p5/8/3p4/8/P5PP/6K1 b - -"]
[Timezone "UTC"]
[ECO "C02"]
[ECOUrl "https://www.chess.com/openings/French-Defense-Advance-Nimzowitsch-System"]
[UTCDate "2011.01.18"]
[UTCTime "03:28:23"]
[WhiteElo "1627"]
[BlackElo "1876"]
[TimeControl "60"]
[Termination "hipposcottimus won by checkmate"]
[StartTime "03:28:23"]
[EndDate "2011.01.18"]
[EndTime "03:30:28"]
[Link "https://www.chess.com/game/live/88706862"]

1. e4 {[%clk 0:01:00]} 1... e6 {[%clk 0:01:00]} 2. Nf3 {[%clk 0:00:59.7]} 2... d5 {[%clk 0:00:59.9]} 3. e5 {[%clk 0:00:59.4]} 3... c5 {[%clk 0:00:59.2]} 4. d4 {[%clk 0:00:59.2]} 4... Nc6 {[%clk 0:00:58.6]} 5. Bb5 {[%clk 0:00:57.5]} 5... Qa5+ {[%clk 0:00:56.9]} 6. Nc3 {[%clk 0:00:55.4]} 6... Bd7 {[%clk 0:00:53.3]} 7. Bxc6 {[%clk 0:00:53.3]} 7... Bxc6 {[%clk 0:00:52.4]} 8. Bd2 {[%clk 0:00:53]} 8... cxd4 {[%clk 0:00:50.8]} 9. Nxd4 {[%clk 0:00:50]} 9... f6 {[%clk 0:00:49.3]} 10. Nxc6 {[%clk 0:00:47.8]} 10... bxc6 {[%clk 0:00:48.4]} 11. O-O {[%clk 0:00:46.4]} 11... fxe5 {[%clk 0:00:45.5]} 12. f4 {[%clk 0:00:46.1]} 12... exf4 {[%clk 0:00:44]} 13. Rxf4 {[%clk 0:00:42.4]} 13... e5 {[%clk 0:00:41.8]} 14. Rf5 {[%clk 0:00:40.6]} 14... Bd6 {[%clk 0:00:39.9]} 15. Qf3 {[%clk 0:00:35.3]} 15... Nh6 {[%clk 0:00:38.7]} 16. Bxh6 {[%clk 0:00:32.2]} 16... gxh6 {[%clk 0:00:37.4]} 17. Qh5+ {[%clk 0:00:30.8]} 17... Kd7 {[%clk 0:00:35.7]} 18. Qxh6 {[%clk 0:00:30]} 18... d4 {[%clk 0:00:32.8]} 19. Qg7+ {[%clk 0:00:28.8]} 19... Be7 {[%clk 0:00:29.1]} 20. Ne4 {[%clk 0:00:27.8]} 20... Rhg8 {[%clk 0:00:26.9]} 21. Qf7 {[%clk 0:00:25.1]} 21... Qb5 {[%clk 0:00:22.4]} 22. Qxh7 {[%clk 0:00:12.4]} 22... Qxb2 {[%clk 0:00:20.8]} 23. Raf1 {[%clk 0:00:10.4]} 23... Qxc2 {[%clk 0:00:19.3]} 24. Rf7 {[%clk 0:00:08.8]} 24... Qxe4 {[%clk 0:00:18.2]} 25. Qxe4 {[%clk 0:00:07.5]} 25... Rgc8 {[%clk 0:00:15.2]} 26. Qxe5 {[%clk 0:00:07]} 26... Rf8 {[%clk 0:00:12.7]} 27. Qf5+ {[%clk 0:00:06.6]} 27... Ke8 {[%clk 0:00:10.6]} 28. Qe6 {[%clk 0:00:05.6]} 28... Rxf7 {[%clk 0:00:09.1]} 29. Rxf7 {[%clk 0:00:04.4]} 29... Kd8 {[%clk 0:00:08.9]} 30. Qxe7+ {[%clk 0:00:03.6]} 30... Kc8 {[%clk 0:00:08.1]} 31. Qc7# {[%clk 0:00:03]} 1-0

[Event "Live Chess"]
[Site "Chess.com"]
[Date "2011.01.18"]
[Round "-"]
[White "hipposcottimus"]
[Black "ddp1"]
[Result "0-1"]
[CurrentPosition "r4rk1/pbpn1pb1/1p2p1pp/8/7N/2P1B3/PP3PPP/R4RK1 w - -"]
[Timezone "UTC"]
[ECO "A06"]
[ECOUrl "https://www.chess.com/openings/Reti-Opening-Tennison-Gambit"]
[UTCDate "2011.01.18"]
[UTCTime "02:40:01"]
[WhiteElo "1360"]
[BlackElo "1395"]
[TimeControl "600"]
[Termination "ddp1 won on time"]
[StartTime "02:40:01"]
[EndDate "2011.01.18"]
[EndTime "02:45:43"]
[Link "https://www.chess.com/game/live/88694741"]

1. e4 {[%clk 0:10:00]} 1... d5 {[%clk 0:10:00]} 2. Nf3 {[%clk 0:09:59.7]} 2... dxe4 {[%clk 0:09:58.2]} 3. Ng5 {[%clk 0:09:59.5]} 3... Nh6 {[%clk 0:09:46.4]} 4. Nxe4 {[%clk 0:09:57.1]} 4... g6 {[%clk 0:09:41.2]} 5. d4 {[%clk 0:09:54.7]} 5... Bg7 {[%clk 0:09:39.5]} 6. Be3 {[%clk 0:09:54.3]} 6... Nf5 {[%clk 0:09:36.8]} 7. Be2 {[%clk 0:09:51]} 7... Nxd4 {[%clk 0:09:25.9]} 8. c3 {[%clk 0:09:49.5]} 8... Ndc6 {[%clk 0:09:15.7]} 9. O-O {[%clk 0:09:31.8]} 9... O-O {[%clk 0:09:13.5]} 10. Qb3 {[%clk 0:09:28.5]} 10... b6 {[%clk 0:09:00.6]} 11. Bc4 {[%clk 0:09:23.1]} 11... e6 {[%clk 0:08:52.8]} 12. Nbd2 {[%clk 0:09:17.4]} 12... Bb7 {[%clk 0:08:47.2]} 13. Nf3 {[%clk 0:09:11.6]} 13... Na5 {[%clk 0:08:45.2]} 14. Qa4 {[%clk 0:08:04.1]} 14... Bxe4 {[%clk 0:07:50.7]} 15. Ng5 {[%clk 0:07:58]} 15... Nxc4 {[%clk 0:07:36.9]} 16. Qxc4 {[%clk 0:07:49.8]} 16... Bb7 {[%clk 0:07:27.9]} 17. Qh4 {[%clk 0:07:46.1]} 17... h6 {[%clk 0:07:06]} 18. Nf3 {[%clk 0:07:38.3]} 18... Qxh4 {[%clk 0:07:03.3]} 19. Nxh4 {[%clk 0:07:35]} 19... Nd7 {[%clk 0:06:53.2]} 0-1